[Event "Polish Youth Ekstraliga 2022"]
[Site "Lublin"]
[Date "2022.07.02"]
[Round "8.9"]
[White "Przybylski, Jan"]
[Black "Warchol, Kamil"]
[Result "0-1"]
[ECO "B49"]
[WhiteElo "1694"]
[BlackElo "2079"]
[Annotator "NA RC"]
[PlyCount "122"]
[EventDate "2022.06.24"]
[EventType "team-tourn"]
[EventCountry "POL"]
[SourceTitle "playchess.com"]
[Source "ChessBase"]
[SourceQuality "1"]
[TimeControl "40/5400+30:1800+30"]

1. e4 c5 {[%emt 0:00:19]} 2. Nf3 {[%emt 0:00:09]} e6 {[%emt 0:00:04]} 3. d4 {[%emt 0:00:05]} cxd4 {[%emt 0:00:06]} 4. Nxd4 {[%emt 0:00:06]} Nc6 {[%emt 0:00:03]} 5. Nc3 {[%emt 0:03:48]} Qc7 {[%emt 0:00:31]} 6. Be3 {[%emt 0:02:40]} a6 {[%emt 0:01:26]} 7. Be2 {[%emt 0:03:21]} b5 {[%emt 0:01:47]} 8. O-O {[%emt 0:04:55]} Bb7 {[%emt 0:02:21]} 9. a3 {[%emt 0:02:21]} Nf6 {[%emt 0:11:50]} 10. f4 {[%emt 0:21:22]} Bc5 {[%emt 0:20:48] 10...Nxd4 is becoming the main line.} 11. Nf5 {[%emt 0:14:43]} Bxe3+ {[%emt 0:00:24]} 12. Nxe3 {[%emt 0:00:07] [#]} d6 $146 {[%emt 0:00:29]} ({Predecessor:} 12... Qb6 13. Qd2 d5 14. exd5 exd5 15. Kh1 d4 16. Nf5 O-O 17. Nd1 Ne4 18. Qd3 Rfe8 {1-0 (28) De Nacimiento Montano,A (1999)-Ladron de Guevara Bravo,P (2052) Linares 2007}) 13. Qd2 {[%emt 0:05:18]} O-O {[%emt 0:04:58]} 14. Ng4 {[%emt 0:06:25]} Nxg4 {[%emt 0:16:39]} 15. Bxg4 {[%emt 0:00:34]} Rad8 {[%emt 0:08:29]} 16. Rad1 {[%emt 0:04:18]} Na5 {[%emt 0:11:05]} 17. Be2 {[%emt 0:21:43]} d5 {[%emt 0:05:09]} 18. e5 {[%emt 0:00:41]} d4 {[%emt 0:02:55]} 19. Na2 {[%emt 0:01:25]} Nc4 {[%emt 0:01:59]} 20. Bxc4 {[%emt 0:01:16]} bxc4 {[%emt 0:00:09]} 21. Qf2 {[%emt 0:00:48]} Qc6 {[%emt 0:00:47]} 22. Nb4 {[%emt 0:01:29]} Qb5 {[%emt 0:03:03]} 23. Rxd4 {[%emt 0:02:23]} a5 {[%emt 0:00:06]} 24. Na2 {[%emt 0:00:22]} Qxb2 {[%emt 0:00:16]} 25. c3 {[%emt 0:00:24]} Qxf2+ {[%emt 0:03:48]} 26. Kxf2 {[%emt 0:00:41]} Bd5 {[%emt 0:01:20]} 27. Re1 {[%emt 0:01:52]} Rb8 {[%emt 0:00:12]} 28. Nc1 {[%emt 0:00:11]} Rb2+ {[%emt 0:01:05]} 29. Re2 {[%emt 0:00:17]} Rb1 30. Rc2 {[%emt 0:00:40]} Rfb8 {[%emt 0:00:50]} 31. Ke3 {[%emt 0:00:29]} Ra1 {[%emt 0:00:31]} 32. Rdd2 {[%emt 0:00:18]} h6 {[%emt 0:01:11]} 33. Kd4 {[%emt 0:00:10]} Rbb1 {[%emt 0:00:48]} 34. Na2 {[%emt 0:00:37]} Rb3 {[%emt 0:00:30]} 35. Nc1 {[%emt 0:00:53]} Rbxa3 {[%emt 0:00:24]} 36. Ra2 {[%emt 0:00:42]} R3xa2 {[%emt 0:00:20]} 37. Nxa2 {[%emt 0:00:09]} Rb1 {[%emt 0:00:37]} 38. Kc5 {[%emt 0:00:13]} h5 {[%emt 0:00:39]} 39. Rf2 {[%emt 0:01:04]} g6 {[%emt 0:01:08]} (39... h4 $142 40. Kd6 Rd1) 40. g3 {[%emt 0:00:00]} Kf8 {[%emt 0:00:00]} 41. Re2 {[%emt 0:10:50]} Kg7 {[%emt 0:08:39]} 42. Rf2 {[%emt 0:05:03]} Kh6 {[%emt 0:01:37]} 43. Re2 {[%emt 0:05:26]} h4 {[%emt 0:02:20]} 44. g4 {[%emt 0:01:39]} Rf1 {[%emt 0:01:00]} 45. f5 {[%emt 0:00:16]} gxf5 {[%emt 0:01:49]} 46. gxf5 {[%emt 0:00:08]} Rxf5 {[%emt 0:00:11]} 47. Kb5 {[%emt 0:00:21]} Kg5 {[%emt 0:03:26]} 48. Kxa5 {[%emt 0:00:10]} Kf4 {[%emt 0:00:23]} 49. Kb4 {[%emt 0:00:53]} Bf3 {[%emt 0:06:32]} 50. Rd2 {[%emt 0:02:51]} Rxe5 {[%emt 0:00:43]} 51. Kxc4 {[%emt 0:00:18]} Ke3 {[%emt 0:00:34]} 52. Rd3+ {[%emt 0:00:49]} Kf2 {[%emt 0:04:15]} 53. Nc1 {[%emt 0:00:38]} Bd5+ {[%emt 0:01:04]} 54. Kd4 {[%emt 0:00:26]} Re4+ $2 {[%emt 0:00:13]} (54... Re1 55. Rd2+ Kf3) 55. Kc5 {[%emt 0:00:07]} f5 {[%emt 0:00:59]} 56. Rd2+ {[%emt 0:00:24]} Kf3 {[%emt 0:00:28]} 57. Rc2 {[%emt 0:01:06]} Rc4+ {[%emt 0:02:05]} 58. Kd6 $19 {[%emt 0:00:13]} Be4 {[%emt 0:00:45]} 59. Nb3 {[%emt 0:01:45]} Bxc2 {[%emt 0:01:40]} 60. Nd2+ {[%emt 0:00:07]} Ke2 {[%emt 0:00:10]} 61. Nxc4 {[%emt 0:00:29]} f4 {[%emt 0:00:05]} 0-1

[Event "Polish Youth Ekstraliga 2022"]
[Site "Lublin"]
[Date "2022.07.02"]
[Round "8.10"]
[White "Krol, Jan"]
[Black "Terkiewicz, Bruno"]
[Result "1/2-1/2"]
[ECO "B90"]
[WhiteElo "1668"]
[BlackElo "1320"]
[Annotator "NA RC"]
[PlyCount "87"]
[EventDate "2022.06.24"]
[EventType "team-tourn"]
[EventCountry "POL"]
[SourceTitle "playchess.com"]
[Source "ChessBase"]
[SourceQuality "1"]
[TimeControl "40/5400+30:1800+30"]

1. e4 {[%emt 0:00:25]} c5 {[%emt 0:00:02]} 2. Nf3 {[%emt 0:00:03]} d6 {[%emt 0:00:02]} 3. d4 {[%emt 0:00:03]} cxd4 4. Nxd4 {[%emt 0:00:03]} Nf6 {[%emt 0:00:21]} 5. Nc3 {[%emt 0:00:05]} a6 {[%emt 0:00:05]} 6. Bd3 {[%emt 0:00:26]} e5 {[%emt 0:00:04]} 7. Nde2 {[%emt 0:00:03]} Be7 {[%emt 0:00:05]} 8. O-O {[%emt 0:00:33]} O-O {[%emt 0:00:02]} 9. Kh1 {[%emt 0:01:10]} b5 {[%emt 0:00:37]} 10. a3 {[%emt 0:00:40]} Nbd7 {[%emt 0:02:19]} 11. Ng3 {[%emt 0:00:23]} Nc5 {[%emt 0:10:03]} 12. f4 {[%emt 0:02:55]} Re8 {[%emt 0:13:28]} 13. Nd5 {[%emt 0:07:08]} Nxd5 {[%emt 0:05:59]} 14. exd5 {[%emt 0:00:07]} exf4 {[%emt 0:00:09]} 15. Bxf4 {[%emt 0:02:16]} Bf6 {[%emt 0:01:06]} 16. c3 {[%emt 0:02:18]} Nxd3 {[%emt 0:07:13]} 17. Qxd3 {[%emt 0:00:05]} Be5 {[%emt 0:00:20]} 18. Qf3 {[%emt 0:22:23]} Bxf4 {[%emt 0:25:10]} 19. Qxf4 {[%emt 0:00:08]} Ra7 {[%emt 0:00:23]} 20. a4 {[%emt 0:13:35]} Rae7 {[%emt 0:07:16]} 21. axb5 {[%emt 0:00:36]} axb5 {[%emt 0:00:08]} 22. Nh5 {[%emt 0:16:04]} f5 {[%emt 0:04:20]} 23. Qg3 {[%emt 0:07:58]} Kh8 {[%emt 0:00:38]} 24. h3 {[%emt 0:01:34]} g6 {[%emt 0:02:58]} 25. Nf4 {[%emt 0:00:39]} Qc7 {[%emt 0:03:40]} 26. Qh4 {[%emt 0:00:34]} Kg7 {[%emt 0:00:52]} 27. Qg5 {[%emt 0:00:18]} Rf7 {[%emt 0:02:24]} 28. Ra8 {[%emt 0:06:26]} Qe7 {[%emt 0:05:01]} 29. Qg3 {[%emt 0:03:42]} Bb7 {[%emt 0:02:40]} 30. Rxe8 {[%emt 0:05:43]} Qxe8 {[%emt 0:00:05]} 31. Re1 {[%emt 0:02:01]} Re7 {[%emt 0:02:47]} 32. Ne6+ {[%emt 0:00:34]} Kg8 {[%emt 0:00:17]} 33. Qxd6 {[%emt 0:00:43]} Rd7 {[%emt 0:01:14]} 34. Qg3 {[%emt 0:00:09]} Bxd5 {[%emt 0:02:46]} 35. Nc7 {[%emt 0:00:14]} Qf7 {[%emt 0:00:31]} 36. Re8+ {[%emt 0:00:44]} Kg7 {[%emt 0:00:04]} 37. Qe5+ {[%emt 0:00:11]} Kh6 {[%emt 0:00:26]} 38. Nxd5 {[%emt 0:03:29]} Rxd5 {[%emt 0:01:49]} 39. Qe2 {[%emt 0:01:04]} Rd1+ {[%emt 0:02:02]} 40. Kh2 {[%emt 0:00:00]} Qc7+ {[%emt 0:00:00]} 41. Qe5 {[%emt 0:00:46]} Qa7 {[%emt 0:16:06]} 42. Qe3+ {[%emt 0:02:18]} Qxe3 {[%emt 0:00:06]} 43. Rxe3 {[%emt 0:00:04]} Rd2 {[%emt 0:00:37]} 44. b3 {[%emt 0:15:50]} 1/2-1/2

[Event "Polish Youth Ekstraliga 2022"]
[Site "Lublin"]
[Date "2022.07.02"]
[Round "8.11"]
[White "Bukala, Weronika"]
[Black "Adamczyk, Zuzanna"]
[Result "1-0"]
[ECO "B23"]
[WhiteElo "1827"]
[BlackElo "1909"]
[Annotator "RC"]
[PlyCount "121"]
[EventDate "2022.06.24"]
[EventType "team-tourn"]
[EventCountry "POL"]
[SourceTitle "playchess.com"]
[Source "ChessBase"]
[SourceQuality "1"]
[TimeControl "40/5400+30:1800+30"]

1. e4 {[%emt 0:00:15]} c5 {[%emt 0:00:34]} 2. Nc3 {[%emt 0:00:11]} Nc6 {[%emt 0:02:22]} 3. Nge2 {[%emt 0:01:17]} g6 {[%emt 0:02:29]} 4. g3 {[%emt 0:00:47]} Bg7 {[%emt 0:01:32]} 5. Bg2 {[%emt 0:01:23]} d6 {[%emt 0:04:00]} 6. O-O {[%emt 0:00:14]} e6 {[%emt 0:01:26]} 7. d3 {[%emt 0:00:58]} Nge7 {[%emt 0:01:18]} 8. Be3 {[%emt 0:01:17]} Nd4 {[%emt 0:01:59]} 9. Qd2 {[%emt 0:03:35]} O-O {[%emt 0:03:28]} 10. Rad1 {[%emt 0:11:57]} a6 {[%emt 0:07:23]} 11. Nb1 {[%emt 0:01:52]} Nxe2+ {[%emt 0:05:52]} 12. Qxe2 {[%emt 0:00:02]} Nc6 {[%emt 0:12:39]} 13. c3 {[%emt 0:00:32]} e5 {[%emt 0:05:46]} 14. f4 {[%emt 0:07:56]} exf4 {[%emt 0:07:43]} 15. Bxf4 {[%emt 0:01:53]} Be6 {[%emt 0:07:04]} 16. b3 {[%emt 0:02:54]} Qd7 {[%emt 0:07:09]} 17. Qf2 {[%emt 0:14:33]} Rad8 {[%emt 0:13:06]} 18. Rd2 {[%emt 0:14:19]} h6 {[%emt 0:04:26]} 19. d4 {[%emt 0:06:16]} cxd4 {[%emt 0:01:01]} 20. cxd4 {[%emt 0:00:08]} Bh3 {[%emt 0:02:12]} 21. Nc3 {[%emt 0:04:45]} Bxg2 {[%emt 0:00:41]} 22. Kxg2 {[%emt 0:00:02]} Ne7 {[%emt 0:02:06]} 23. Qf3 {[%emt 0:06:33]} d5 {[%emt 0:01:23]} 24. e5 {[%emt 0:00:33]} f6 {[%emt 0:00:57]} 25. Qe2 {[%emt 0:03:53]} g5 {[%emt 0:00:48]} 26. exf6 {[%emt 0:00:25]} Rxf6 {[%emt 0:00:34]} 27. Be5 {[%emt 0:00:36]} Rxf1 {[%emt 0:00:52]} 28. Qxf1 {[%emt 0:02:02]} Bxe5 {[%emt 0:00:59]} 29. dxe5 {[%emt 0:00:02]} Qc6 {[%emt 0:00:59]} 30. Ne4 {[%emt 0:04:53]} Rf8 {[%emt 0:01:21]} 31. Nf6+ {[%emt 0:00:38]} Kg7 {[%emt 0:00:58]} 32. Qd3 {[%emt 0:02:13]} Ng6 {[%emt 0:00:32]} 33. Rc2 {[%emt 0:03:49]} Qe6 {[%emt 0:00:40]} 34. Rf2 {[%emt 0:02:31]} Rd8 {[%emt 0:00:22]} 35. Nh5+ {[%emt 0:00:19]} Kg8 {[%emt 0:00:27]} 36. Nf6+ {[%emt 0:01:35]} Kg7 {[%emt 0:00:05]} 37. Nh5+ {[%emt 0:00:06]} Kg8 {[%emt 0:00:03]} 38. Rf6 {[%emt 0:00:28]} Nxe5 {[%emt 0:00:10]} 39. Qe3 {[%emt 0:00:24]} Qe7 {[%emt 0:01:18]} 40. Rxh6 {[%emt 0:00:00]} d4 {[%emt 0:00:00]} 41. Qe4 {[%emt 0:07:48]} Rd6 {[%emt 0:11:34]} 42. Rxd6 {[%emt 0:00:53]} Qxd6 {[%emt 0:00:06]} 43. Qxb7 {[%emt 0:04:07]} Nf7 {[%emt 0:10:36]} 44. Qc8+ {[%emt 0:07:12]} Nd8 {[%emt 0:03:41]} 45. Qd7 {[%emt 0:01:26]} Qxd7 {[%emt 0:03:39]} 46. Nf6+ {[%emt 0:00:02]} Kf7 {[%emt 0:00:23]} 47. Nxd7 Nc6 48. Kf3 {[%emt 0:01:36]} Ke6 {[%emt 0:03:54]} 49. Nc5+ {[%emt 0:00:17]} Kd5 {[%emt 0:00:05]} 50. Nxa6 {[%emt 0:02:33]} Ne5+ {[%emt 0:00:10]} 51. Ke2 {[%emt 0:00:17]} Ng4 {[%emt 0:00:56]} 52. Nb4+ {[%emt 0:02:30]} Ke4 {[%emt 0:00:29]} 53. h4 {[%emt 0:00:32]} gxh4 {[%emt 0:01:13]} 54. gxh4 {[%emt 0:00:01]} Ne5 {[%emt 0:00:26]} 55. h5 {[%emt 0:01:41]} Ng4 {[%emt 0:01:17]} 56. a4 {[%emt 0:00:26]} Nh6 {[%emt 0:00:22]} 57. a5 {[%emt 0:00:13]} Nf5 {[%emt 0:00:28]} 58. a6 {[%emt 0:00:29]} d3+ {[%emt 0:00:19]} 59. Nxd3 {[%emt 0:00:23]} Nd4+ {[%emt 0:00:07]} 60. Kd1 {[%emt 0:01:10]} Nc6 {[%emt 0:01:02]} 61. h6 {[%emt 0:00:28]} 1-0

[Event "Polish Youth Ekstraliga 2022"]
[Site "Lublin"]
[Date "2022.07.02"]
[Round "8.13"]
[White "Poltorak, Sebastian"]
[Black "Ciborowski, Konrad Jr"]
[Result "1-0"]
[ECO "A00"]
[WhiteElo "2322"]
[BlackElo "1927"]
[Annotator "TA"]
[PlyCount "103"]
[EventDate "2022.06.24"]
[EventType "team-tourn"]
[EventCountry "POL"]
[SourceTitle "playchess.com"]
[Source "ChessBase"]
[SourceQuality "1"]
[TimeControl "40/5400+30:1800+30"]

{[%evp 9,103,0,8,3,5,0,2,-8,3,-14,-18,-33,-14,-40,0,0,0,0,15,20,16,27,43,40,42,41,41,48,34,35,33,43,41,41,54,55,99,89,107,86,84,81,91,97,94,83,83,83,85,81,94,94,106,105,93,117,100,112,159,147,368,366,362,356,352,347,366,355,408,402,364,319,408,393,545,534,3753,4134,29958,29959,29981,5643,29982,29983,29981,980,950,885,29963,29964,29977,29977,29972,29972,4935,4134]} 1. a3 {[%emt 0:00:23]} Nf6 {[%emt 0:00:14]} 2. Nf3 {[%emt 0:00:08]} e6 {[%emt 0:00:02]} 3. b4 {[%emt 0:01:28]} c5 {[%emt 0:01:41]} 4. bxc5 {[%emt 0:00:07]} Bxc5 {[%emt 0:00:03]} 5. d4 {[%emt 0:00:09]} Be7 {[%emt 0:00:05]} 6. e3 {[%emt 0:00:53] A00: Irregular Openings.} O-O {[%emt 0:00:20]} 7. c4 {[%emt 0:00:41]} d5 {[%emt 0:00:35]} 8. Nc3 {[%emt 0:00:38] The position is equal.} b6 {[%emt 0:02:01]} 9. Bb2 {[%emt 0:04:09]} Ba6 {[%emt 0:06:15] [#]} 10. Ne5 $146 {[%emt 0:02:58]} ({Predecessor:} 10. Qa4 Qc8 11. Nd2 dxc4 12. Bxc4 Bb7 13. O-O Nbd7 14. Rac1 a6 15. Be2 b5 16. Qd1 {1-0 (35) Kracik,T (1892)-Drasnar,P Nachod 2006}) 10... dxc4 {[%emt 0:08:41]} 11. Qf3 {[%emt 0:04:35]} Nbd7 {[%emt 0:04:10]} (11... Nd5 $5 {[%cal Rb6b5]}) 12. Nc6 {[%emt 0:03:06]} Qe8 {[%emt 0:00:12]} 13. a4 $1 {[%emt 0:00:26] Inhibits b5.} Bd6 {[%emt 0:03:04] And now ...Bb7 would win.} 14. Nb5 $1 {[%emt 0:00:43]} Bxb5 {[%emt 0:03:48]} 15. axb5 {[%emt 0:00:22]} a6 {[%emt 0:03:04]} 16. Bxc4 {[%emt 0:07:13]} ({Don't blunder} 16. Rxa6 $2 Rxa6 17. bxa6 b5 $19) 16... axb5 {[%emt 0:01:36]} 17. Bxb5 {[%emt 0:00:14]} Rxa1+ {[%emt 0:05:30]} 18. Bxa1 {[%emt 0:00:05]} Nb8 {[%emt 0:02:29]} 19. O-O $1 {[%emt 0:06:04]} Nxc6 {[%emt 0:05:38]} 20. Bxc6 {[%emt 0:00:04]} Qb8 {[%emt 0:00:08]} 21. g3 {[%emt 0:07:06]} b5 {[%emt 0:01:14]} 22. e4 {[%emt 0:00:54] e5 is the strong threat.} e5 {[%emt 0:01:38] [#]} 23. Qf5 $1 {[%emt 0:03:34][%cal Rd4e5]} Qc8 {[%emt 0:03:16]} 24. dxe5 {[%emt 0:20:10]} Bxe5 {[%emt 0:00:21]} 25. Bxb5 {[%emt 0:05:28] This bishop pair is nice.} ({Much weaker is} 25. Qxe5 Qxc6 26. Rb1 Qxe4 27. Rxb5 Rd8 $11) 25... Qxf5 {[%emt 0:08:00]} 26. exf5 {[%emt 0:00:07]} Bxa1 {[%emt 0:00:02]} 27. Rxa1 $16 {[%emt 0:00:09][%mdl 4096] Endgame KRB-KRN} g6 {[%emt 0:08:48]} 28. fxg6 {[%emt 0:00:12]} hxg6 {[%emt 0:00:10]} 29. Ra7 {[%emt 0:05:46]} Kg7 {[%emt 0:01:27]} 30. Bc4 {[%emt 0:00:08]} Ng8 {[%emt 0:03:31]} 31. g4 {[%emt 0:02:02] Black must now prevent g5.} g5 {[%emt 0:00:44]} 32. h3 {[%emt 0:01:34] White is more active.} Nh6 {[%emt 0:00:15]} 33. Ra5 f5 {[%emt 0:05:46]} (33... Rc8 $142) 34. Bd3 {[%emt 0:01:22]} fxg4 $2 {[%emt 0:01:46] Black cannot hold the game after this.} (34... Kh8 $16 {was called for.} 35. gxf5 Rf6) 35. Rxg5+ $18 {[%emt 0:01:10]} Kf7 {[%emt 0:00:08]} 36. hxg4 {[%emt 0:00:22]} Rd8 {[%emt 0:03:40]} 37. Be2 {[%emt 0:00:09]} Rd4 {[%emt 0:02:16]} 38. f3 {[%emt 0:00:12]} Kf6 {[%emt 0:00:42]} 39. Ra5 {[%emt 0:00:22] Hoping for g5+.} Nf7 {[%emt 0:01:34] Prevents g5+.} 40. Rf5+ {[%emt 0:00:00]} Kg6 {[%emt 0:00:00]} 41. Kf2 {[%emt 0:05:42]} Ng5 {[%emt 0:01:05]} 42. Ke3 {[%emt 0:00:25]} Rd6 {[%emt 0:00:19]} 43. Bd3 {[%emt 0:00:06] White threatens Rd5+ and mate.} Kh6 {[%emt 0:00:04]} 44. f4 {[%emt 0:01:22]} Ne6 {[%emt 0:00:40]} 45. Rf6+ {[%emt 0:01:55]} Kg7 {[%emt 0:00:04]} 46. g5 {[%emt 0:00:10]} Rc6 {[%emt 0:01:49]} 47. Bb5 {[%emt 0:01:57]} (47. f5 $142 Nd8 48. Rxc6 Nxc6 49. Kf4 Kg8 50. f6 Kf7 51. Be4 Ne7 52. fxe7) 47... Rc3+ {[%emt 0:00:32] [#]} 48. Ke4 $1 {[%emt 0:02:20]} Nf8 {[%emt 0:00:54]} 49. Rc6 {[%emt 0:01:19]} Ra3 {[%emt 0:04:40]} 50. Rc7+ {[%emt 0:00:05]} Kh8 {[%emt 0:00:16]} 51. Kf5 {[%emt 0:00:58]} Ra5 {[%emt 0:00:15]} 52. Rb7 {[%emt 0:00:04] Weighted Error Value: White=0.04 (flawless) /Black=0.41} 1-0

[Event "Polish Youth Ekstraliga 2022"]
[Site "Lublin"]
[Date "2022.07.02"]
[Round "8.14"]
[White "Wydmanski, Szymon"]
[Black "Meers, Hubert"]
[Result "0-1"]
[ECO "A46"]
[WhiteElo "1815"]
[BlackElo "2013"]
[Annotator "RC"]
[PlyCount "96"]
[EventDate "2022.06.24"]
[EventType "team-tourn"]
[EventCountry "POL"]
[SourceTitle "playchess.com"]
[Source "ChessBase"]
[SourceQuality "1"]
[TimeControl "40/5400+30:1800+30"]

1. d4 {[%emt 0:00:03]} Nf6 {[%emt 0:00:41]} 2. Nf3 {[%emt 0:00:06]} e6 {[%emt 0:01:05]} 3. g3 {[%emt 0:00:16]} c5 {[%emt 0:00:38]} 4. c4 {[%emt 0:03:47]} cxd4 {[%emt 0:00:28]} 5. Nxd4 {[%emt 0:00:07]} Nc6 {[%emt 0:00:10]} 6. Nxc6 {[%emt 0:04:45]} bxc6 {[%emt 0:00:04]} 7. Bg2 {[%emt 0:00:13]} d5 {[%emt 0:03:02]} 8. O-O {[%emt 0:01:20]} Be7 {[%emt 0:00:57]} 9. Nc3 {[%emt 0:02:59]} O-O {[%emt 0:00:26]} 10. Qa4 {[%emt 0:15:06]} Bd7 {[%emt 0:03:23]} 11. Rd1 {[%emt 0:00:38]} Qb6 {[%emt 0:05:38]} 12. Qc2 {[%emt 0:16:06]} Rfc8 {[%emt 0:24:25]} 13. e4 {[%emt 0:04:20]} Ng4 {[%emt 0:03:46]} 14. Na4 {[%emt 0:07:35]} Qa6 {[%emt 0:06:16]} 15. c5 {[%emt 0:05:12]} e5 {[%emt 0:09:51]} 16. b4 {[%emt 0:10:37]} d4 {[%emt 0:06:48]} 17. Bf1 {[%emt 0:08:52]} Qb7 {[%emt 0:00:09]} 18. a3 {[%emt 0:00:13]} Rf8 {[%emt 0:05:55]} 19. h3 {[%emt 0:02:14]} Nf6 {[%emt 0:04:21]} 20. Kg2 {[%emt 0:06:41]} Qc8 {[%emt 0:00:32]} 21. Kh2 {[%emt 0:00:32]} Be6 {[%emt 0:01:18]} 22. Bd2 {[%emt 0:06:50]} Ne8 {[%emt 0:03:21]} 23. Nb2 {[%emt 0:00:59]} f5 {[%emt 0:00:19]} 24. Be1 {[%emt 0:01:24]} Nf6 {[%emt 0:01:03]} 25. exf5 {[%emt 0:00:51]} Bxf5 {[%emt 0:00:02]} 26. Qb3+ {[%emt 0:00:53]} Kh8 {[%emt 0:00:00]} 27. Nd3 {[%emt 0:00:26]} Qc7 {[%emt 0:02:38]} 28. Bg2 {[%emt 0:00:48]} Rad8 {[%emt 0:01:48]} 29. Ra2 {[%emt 0:00:15]} Nd5 {[%emt 0:01:28]} 30. Re2 {[%emt 0:00:34]} Bf6 {[%emt 0:00:08]} 31. b5 {[%emt 0:00:23]} Rfe8 {[%emt 0:03:53]} 32. Be4 {[%emt 0:00:43]} Qc8 {[%emt 0:02:57]} 33. g4 {[%emt 0:00:34]} Be6 {[%emt 0:02:06]} 34. Qb1 {[%emt 0:00:36]} cxb5 {[%emt 0:00:45]} 35. Qxb5 {[%emt 0:00:30]} Bg5 {[%emt 0:00:15]} 36. Qb1 {[%emt 0:00:29]} Bf4+ {[%emt 0:03:56]} 37. Kh1 {[%emt 0:00:29]} Bxg4 {[%emt 0:00:35]} 38. hxg4 {[%emt 0:00:06]} Qxg4 {[%emt 0:00:02]} 39. f3 {[%emt 0:00:54]} Qh3+ {[%emt 0:00:09]} 40. Kg1 {[%emt 0:00:00]} Be3+ {[%emt 0:00:00]} 41. Bf2 {[%emt 0:11:42]} Re6 {[%emt 0:14:25]} 42. Bxe3 {[%emt 0:10:25]} Nxe3 {[%emt 0:00:28]} 43. Rxe3 {[%emt 0:00:41]} Qg3+ {[%emt 0:00:33]} 44. Kf1 {[%emt 0:00:05]} dxe3 {[%emt 0:00:03]} 45. Qa2 {[%emt 0:01:37]} Rh6 {[%emt 0:00:13]} 46. Qg2 {[%emt 0:00:22]} e2+ {[%emt 0:00:02]} 47. Kxe2 {[%emt 0:02:04]} Qxg2+ {[%emt 0:00:06]} 48. Nf2 {[%emt 0:00:05]} Rxd1 {[%emt 0:00:08]} 0-1

[Event "Polish Youth Ekstraliga 2022"]
[Site "Lublin"]
[Date "2022.07.02"]
[Round "8.15"]
[White "Zielonka, Adam"]
[Black "Wolak, Maciej"]
[Result "1-0"]
[ECO "A36"]
[WhiteElo "1988"]
[BlackElo "1316"]
[Annotator "NA RC"]
[PlyCount "35"]
[EventDate "2022.06.24"]
[EventType "team-tourn"]
[EventCountry "POL"]
[SourceTitle "playchess.com"]
[Source "ChessBase"]
[SourceQuality "1"]
[TimeControl "40/5400+30:1800+30"]

1. c4 {[%emt 0:00:01]} c5 {[%emt 0:00:06]} 2. Nc3 {[%emt 0:00:06]} Nc6 {[%emt 0:00:04]} 3. g3 {[%emt 0:00:08]} g6 {[%emt 0:00:07]} 4. Bg2 {[%emt 0:00:16]} Bg7 {[%emt 0:00:17]} 5. e4 {[%emt 0:00:50]} d6 {[%emt 0:06:10]} 6. Nge2 {[%emt 0:00:55]} e6 {[%emt 0:00:24]} 7. O-O {[%emt 0:00:14]} Nge7 {[%emt 0:00:14]} 8. d3 {[%emt 0:00:18]} O-O {[%emt 0:00:15]} 9. Rb1 {[%emt 0:00:49]} b6 {[%emt 0:00:24]} 10. a3 {[%emt 0:00:18]} Bb7 {[%emt 0:03:26]} 11. b4 {[%emt 0:01:17]} Qd7 {[%emt 0:00:46]} 12. Be3 {[%emt 0:06:57]} Rad8 {[%emt 0:11:26]} 13. Qd2 {[%emt 0:09:42]} Nd4 {[%emt 0:19:22]} 14. Bg5 {[%emt 0:03:33]} Qe8 {[%emt 0:19:47]} 15. Nxd4 {[%emt 0:00:51]} Bxd4 {[%emt 0:01:37]} 16. Nb5 {[%emt 0:01:16]} a6 {[%emt 0:03:06]} 17. Nxd4 {[%emt 0:00:08]} cxd4 {[%emt 0:00:06]} 18. Bf6 {[%emt 0:00:44]} 1-0

[Event "Polish Youth Ekstraliga 2022"]
[Site "Lublin"]
[Date "2022.07.02"]
[Round "8.16"]
[White "Kania, Franciszek"]
[Black "Liskiewicz, Jakub"]
[Result "1-0"]
[ECO "A15"]
[WhiteElo "1523"]
[BlackElo "1839"]
[Annotator "NA RC"]
[PlyCount "103"]
[EventDate "2022.06.24"]
[EventType "team-tourn"]
[EventCountry "POL"]
[SourceTitle "playchess.com"]
[Source "ChessBase"]
[SourceQuality "1"]
[TimeControl "40/5400+30:1800+30"]

1. c4 {[%emt 0:00:06]} Nf6 {[%emt 0:00:09]} 2. g3 {[%emt 0:00:35]} e6 {[%emt 0:00:15]} 3. Bg2 {[%emt 0:00:10]} d5 {[%emt 0:00:10]} 4. Nf3 {[%emt 0:01:11]} c6 {[%emt 0:00:54]} 5. Qc2 {[%emt 0:00:28]} Bd6 {[%emt 0:00:48]} 6. d4 {[%emt 0:00:37]} O-O {[%emt 0:00:41]} 7. O-O {[%emt 0:00:52]} Nbd7 {[%emt 0:00:47]} 8. Nbd2 {[%emt 0:09:19]} Qc7 {[%emt 0:04:05]} 9. e4 {[%emt 0:05:39]} dxe4 {[%emt 0:00:54]} 10. Nxe4 {[%emt 0:00:20]} Nxe4 {[%emt 0:00:07]} 11. Qxe4 {[%emt 0:00:06]} e5 {[%emt 0:00:20]} 12. c5 {[%emt 0:17:00]} Be7 {[%emt 0:02:15]} 13. Nxe5 {[%emt 0:03:48]} Nf6 {[%emt 0:17:50]} 14. Qc2 {[%emt 0:03:28]} Rd8 {[%emt 0:01:53]} 15. Rd1 {[%emt 0:00:58]} Rxd4 {[%emt 0:15:20]} 16. Rxd4 {[%emt 0:03:51]} Qxe5 {[%emt 0:00:08]} 17. Rd1 {[%emt 0:07:04]} Bg4 {[%emt 0:02:14]} 18. Rf1 {[%emt 0:07:25]} Rd8 {[%emt 0:11:38]} 19. Bf4 {[%emt 0:07:07]} Qh5 {[%emt 0:02:51]} 20. Bd6 {[%emt 0:04:21]} Bxd6 {[%emt 0:03:33]} 21. cxd6 {[%emt 0:00:09]} Rxd6 {[%emt 0:00:12]} 22. f3 {[%emt 0:07:38]} Bd7 23. Rad1 {[%emt 0:02:21]} Nd5 {[%emt 0:08:02]} 24. Qc5 {[%emt 0:01:43]} Rh6 {[%emt 0:00:30]} 25. Kf2 {[%emt 0:04:22]} b6 {[%emt 0:12:25]} 26. Qd4 {[%emt 0:03:58]} Qf5 {[%emt 0:05:59]} 27. h4 {[%emt 0:04:31]} Rg6 {[%emt 0:02:09]} 28. Rfe1 {[%emt 0:01:13]} h5 {[%emt 0:00:52]} 29. Qe4 {[%emt 0:00:52]} Qf6 {[%emt 0:00:50]} 30. Qe5 {[%emt 0:00:12]} Qd8 {[%emt 0:00:29]} 31. Qxh5 {[%emt 0:01:01]} b5 {[%emt 0:01:11]} 32. Qe5 {[%emt 0:00:41]} Qb6+ {[%emt 0:00:42]} 33. Qd4 {[%emt 0:00:09]} Qc7 {[%emt 0:00:18]} 34. f4 {[%emt 0:00:24]} Rf6 {[%emt 0:00:22]} 35. Bxd5 {[%emt 0:01:08]} cxd5 {[%emt 0:00:27]} 36. Qxd5 {[%emt 0:01:27]} Qb6+ {[%emt 0:02:15]} 37. Qd4 {[%emt 0:00:12]} Bg4 {[%emt 0:00:47]} 38. Qxb6 {[%emt 0:00:11]} Rxb6 {[%emt 0:00:06]} 39. Rd8+ {[%emt 0:00:14]} Kh7 {[%emt 0:00:07]} 40. Re7 {[%emt 0:00:00]} Rc6 {[%emt 0:00:00]} 41. Rd2 {[%emt 0:00:46]} Ra6 {[%emt 0:03:02]} 42. a3 {[%emt 0:00:41]} Be6 {[%emt 0:00:38]} 43. Rb7 {[%emt 0:01:06]} Bc4 {[%emt 0:00:43]} 44. Re7 {[%emt 0:03:57]} Be6 {[%emt 0:01:50]} 45. Kf3 {[%emt 0:00:33]} Kg6 {[%emt 0:00:28]} 46. g4 {[%emt 0:01:04]} Kf6 {[%emt 0:00:14]} 47. Rc7 {[%emt 0:00:13]} g6 {[%emt 0:00:25]} 48. Rd8 {[%emt 0:02:16]} Ra4 {[%emt 0:01:19]} 49. Rb8 {[%emt 0:01:42]} a6 {[%emt 0:01:25]} 50. Rb6 {[%emt 0:00:48]} Rd4 {[%emt 0:00:59]} 51. g5+ {[%emt 0:01:52]} Kf5 {[%emt 0:00:45]} 52. Rxf7+ {[%emt 0:00:20]} 1-0